bitfinex-derivatives/quotes_BNBF0:USTF0_20250112
["timestamp","ask_amount","ask_price","bid_price","bid_amount"]
[1736699543606,0.28781119,694.9,693.74,2.33124576]
[1736699544103,0.28781119,694.9,693.74,5.33829847]
[1736699544305,0.28781119,694.9,693.75,2.78046579]
[1736699545901,0.28781119,694.9,693.76,3.00705271]
[1736699546102,0.28781119,694.9,693.77,2.78046579]
[1736699547810,0.28781119,694.9,693.78,3.00705271]
[1736699548007,0.28781119,694.9,693.79,2.78046579]
[1736699549909,0.28781119,694.9,693.8,3.00705271]
[1736699550109,0.28781119,694.9,693.81,2.78046579]
[1736699551209,0.28781119,694.9,693.82,3.00705271]
[1736699551409,0.28781119,694.9,693.83,2.78046579]
[1736699553114,0.28781119,694.9,693.84,3.00705271]
[1736699553314,0.28781119,694.9,693.85,2.78046579]
[1736699554710,0.28781119,694.9,693.86,3.00705271]
[1736699554906,0.28781119,694.9,693.87,2.78046579]
[1736699556810,0.28781119,694.9,693.88,3.00705271]
[1736699557011,0.28781119,694.9,693.89,2.78046579]
[1736699557513,0.28781119,694.9,693.88,3.00705271]
[1736699558312,0.28781119,694.9,693.84,1.29505143]
[1736699559012,0.28781119,694.9,693.75,3.00705271]
[1736699559715,0.28781119,694.9,693.7,0.28830906]
[1736699568625,0.28781119,694.9,693.81,1.29505143]
[1736699569321,0.28781119,694.9,693.96,1.29505143]
[1736699570924,0.28781119,694.9,693.98,1.29505143]
[1736699572521,0.28781119,694.9,693.99,1.29505143]
[1736699573331,0.28781119,694.9,694.01,1.29505143]
[1736699574231,0.28781119,694.9,694.02,1.29505143]
[1736699577336,0.28781119,694.9,693.96,1.74207303]
[1736699578038,0.28781119,694.9,693.9,2.77805486]
[1736699579434,0.28781119,694.9,693.91,3.00705271]
[1736699579635,0.28781119,694.9,693.92,2.77805486]
[1736699580737,0.28781119,694.9,693.93,3.00705271]
[1736699581037,0.28781119,694.9,693.94,1.74207303]
[1736699582039,0.28781119,694.9,693.94,2.778216]
[1736699582442,0.28781119,694.9,693.94,1.74207303]
[1736699582738,0.28781119,694.9,693.95,3.00705271]
[1736699583039,0.28781119,694.9,693.96,1.74207303]
[1736699585040,0.28781119,694.9,693.92,2.77860426]
[1736699586333,0.28781119,694.9,693.93,3.00705271]
[1736699586536,0.28781119,694.9,693.94,2.77860426]
[1736699587933,0.28781119,694.9,693.95,3.00705271]
[1736699588139,0.28781119,694.9,693.96,1.74207303]
[1736699589440,0.28781119,694.9,693.95,3.00705271]
[1736699589638,0.28781119,694.9,693.91,1.29505143]
[1736699589841,0.28781119,694.9,693.82,3.00705271]
[1736699589842,0.28781119,694.9,693.83,2.78130394]
[1736699590141,0.28781119,694.9,693.83,1.74413884]
[1736699590837,0.28781119,694.9,693.83,2.78145546]
[1736699591041,0.28781119,694.9,693.83,5.78850817]
[1736699591341,0.28781119,694.9,693.84,2.78145546]
[1736699592941,0.28781119,694.9,693.85,3.00705271]
[1736699593140,0.28781119,694.9,693.86,2.78145546]
[1736699594135,0.28781119,694.9,693.87,3.00705271]
[1736699594340,0.28781119,694.9,693.88,2.78145546]
[1736699596337,0.28781119,694.9,693.89,3.00705271]
[1736699596541,0.28781119,694.9,693.9,2.78145546]
[1736699597543,0.28781119,694.9,693.91,3.00705271]
[1736699597736,0.28781119,694.9,693.92,1.74413884]
[1736699598342,0.28781119,694.9,693.91,3.00705271]
[1736699599143,0.28781119,694.9,693.61,1.29505143]
[1736699599344,0.28781119,694.9,693.63,1.29505143]
[1736699600140,0.28781119,694.9,693.61,1.29505143]
[1736699600743,0.28781119,694.9,693.61,4.07530379]
[1736699600938,0.28781119,694.9,693.62,2.78025236]
[1736699601643,0.28781119,694.9,693.63,3.00705271]
[1736699601843,0.28781119,694.9,693.64,2.78025236]
[1736699603244,0.28781119,694.9,693.65,3.00705271]
[1736699603446,0.28781119,694.9,693.66,2.78025236]
[1736699604646,0.28781119,694.9,693.67,3.00705271]
[1736699604847,0.28781119,694.9,693.68,2.78025236]
[1736699606050,0.28781119,694.9,693.69,3.00705271]
[1736699606346,0.28781119,694.9,693.69,5.78730507]
[1736699606548,0.28781119,694.9,693.7,3.06856142]
[1736699607248,0.28781119,694.9,693.71,3.00705271]
[1736699607550,0.28781119,694.9,693.72,1.74401275]
[1736699608549,0.28781119,694.9,693.71,3.00705271]
[1736699609351,0.28781119,694.9,693.72,1.7429117]
[1736699609650,0.28781119,694.9,693.7,0.28830906]
[1736699619151,0.28781119,694.9,693.7,1.58336049]
[1736699620057,0.28781119,694.9,693.71,1.29505143]
[1736699621160,0.28781119,694.9,693.7,0.28830906]
[1736699622160,0.28781119,694.9,693.73,1.29505143]
[1736699622364,0.28781119,694.9,693.74,0.28829244]
[1736699622855,0.28781119,694.9,693.8,1.29505143]
[1736699623659,0.28781119,694.9,693.81,1.29505143]
[1736699625255,0.28781119,694.9,693.8,1.29505143]
[1736699626361,0.28781119,694.9,693.8,2.33027536]
[1736699627056,0.28781119,694.9,693.82,1.29505143]
[1736699628161,0.28781119,694.9,693.82,2.33027536]
[1736699628362,0.28781119,694.9,693.82,1.03522393]
[1736699629162,0.28781119,694.9,693.82,4.04227664]
[1736699629464,0.28781119,694.9,693.83,2.77748039]
[1736699630963,0.28781119,694.9,693.84,3.00705271]
[1736699631263,0.28781119,694.9,693.85,2.77748039]
[1736699632963,0.28781119,694.9,693.86,3.00705271]
[1736699633164,0.28781119,694.9,693.87,2.77748039]
[1736699634761,0.28781119,694.9,693.88,3.00705271]
[1736699634961,0.28781119,694.9,693.89,2.77748039]
[1736699635965,0.28781119,694.9,693.9,3.00705271]
[1736699636167,0.28781119,694.9,693.91,2.77748039]
[1736699637572,0.28781119,694.9,693.91,1.74225646]
[1736699637767,0.28781119,694.9,693.92,3.00705271]
[1736699638065,0.28781119,694.9,693.93,1.74225646]
[1736699639466,0.28781119,694.9,693.74,3.06530609]
[1736699640966,0.28781119,694.9,693.75,3.00705271]
[1736699641167,0.28781119,694.9,693.76,2.77701365]
[1736699641965,0.28781119,694.9,693.77,0.28827997]
[1736699642266,0.28781119,694.9,693.77,3.29533268]
[1736699642466,0.28781119,694.9,693.78,1.74225646]
[1736699643666,0.28781119,694.9,693.77,0.28827997]
[1736699646773,0.28781119,694.9,693.77,3.29533268]
[1736699646971,0.28781119,694.9,693.78,2.77706508]
[1736699647270,0.28781119,694.9,693.79,0.28827166]
[1736699648271,0.28781119,694.9,693.79,6.07238945]
[1736699648469,0.28781119,694.9,693.8,2.77706508]
[1736699648670,0.28781119,694.9,693.81,1.58331478]
[1736699648869,0.28781119,694.9,693.82,0.2882592]
[1736699649065,0.28781119,694.9,693.82,3.06532428]
[1736699649570,0.28781119,694.9,693.82,2.03051566]
[1736699649771,0.28781119,694.9,693.85,1.29505143]
[1736699650871,0.28781119,694.9,693.9,1.29505143]
[1736699651974,0.28781119,694.9,693.85,1.74225646]
[1736699652571,0.28781119,694.9,693.84,2.77583479]
[1736699653269,0.28781119,694.9,693.85,1.29505143]
[1736699653473,0.28781119,694.9,693.85,5.33568247]
[1736699653673,0.28781119,694.9,693.86,2.77583479]
[1736699654676,0.28781119,694.9,693.87,3.00705271]
[1736699654876,0.28781119,694.9,693.88,2.77583479]
[1736699655574,0.28781119,694.9,693.91,1.29505143]
[1736699656474,0.28781119,694.9,693.9,2.77583479]
[1736699657578,0.28781119,694.9,693.9,1.74225646]
[1736699657876,0.28781119,694.9,693.9,2.77549164]
[1736699658479,0.28781119,694.9,693.91,1.74225646]
[1736699658678,0.28781119,694.9,693.89,1.74225646]
[1736699658872,0.28781119,694.9,693.88,3.00705271]
[1736699659678,0.28781119,694.9,693.82,0.2882592]
[1736699660775,1.50308824,695.38,693.82,0.2882592]
[1736699660974,0.28761666,695.37,693.82,0.2882592]
[1736699669086,0.28761666,695.37,693.89,1.29505143]
[1736699669283,0.28761666,695.37,693.9,0.28822596]
[1736699671183,0.28761666,695.37,693.9,3.05974357]
[1736699671985,0.28761666,695.37,693.91,3.00705271]
[1736699672182,0.28761666,695.37,693.92,2.77151761]
[1736699672581,0.26447287,695.36,693.92,2.77151761]
[1736699673484,0.26447287,695.36,694.01,1.29505143]
[1736699675084,0.26448583,695.35,694.01,1.29505143]
[1736699675286,0.28761666,695.37,693.97,1.03259108]
[1736699675287,1.0784721,695.29,693.97,1.03259108]
[1736699675590,1.0784721,695.29,693.96,1.73892653]
[1736699675591,1.0784721,695.29,693.96,2.77151761]
[1736699675993,1.0784721,695.29,693.97,3.00705271]
[1736699676194,1.0784721,695.29,693.98,2.77151761]
[1736699676991,1.0784721,695.29,693.99,3.00705271]
[1736699677190,1.0784721,695.29,694.0,2.77151761]
[1736699677497,1.0784721,695.28,694.0,2.77151761]
[1736699678392,1.0784721,695.29,694.01,3.00705271]
[1736699678597,1.0784721,695.29,694.02,2.77151761]
[1736699679390,1.0784721,695.29,694.01,3.00705271]
[1736699679600,1.0784721,695.28,694.01,3.00705271]
[1736699680199,1.0784721,695.28,693.96,1.29505143]
[1736699680599,1.36608876,695.37,693.88,3.00705271]
[1736699680798,1.36608876,695.37,693.89,1.74118615]
[1736699681398,1.0784721,695.36,693.89,1.74118615]
[1736699681598,0.28762493,695.35,693.89,1.74118615]
[1736699681997,0.28762493,695.35,693.88,3.00705271]
[1736699682194,0.28762493,695.35,693.77,1.29505143]
[1736699682595,0.28762493,695.35,693.67,2.77566081]
[1736699682596,0.28762493,695.35,693.75,1.29505143]
[1736699683699,0.28762493,695.35,693.77,1.29505143]
[1736699684498,0.28762493,695.35,693.76,4.07071224]
[1736699684800,0.28762493,695.35,693.77,2.77551358]
[1736699685198,0.28762493,695.35,693.78,3.00705271]
[1736699685396,0.28762493,695.35,693.79,1.74116673]
[1736699686200,0.28762493,695.35,693.78,3.00705271]
[1736699686500,0.28762493,695.35,693.76,1.29505143]
[1736699686894,0.28762493,695.35,693.67,1.29505143]
[1736699687091,0.28762493,695.35,693.67,3.03573792]
[1736699687298,0.28762493,695.35,693.68,2.77478185]
[1736699687499,0.28762493,695.35,693.68,1.74068649]
[1736699687695,0.28762493,695.35,693.67,1.29505143]
[1736699687900,0.28762493,695.35,693.68,4.30210414]
[1736699688101,0.28762493,695.35,693.69,1.74068649]
[1736699688602,0.28762493,695.35,693.69,2.7747619]
[1736699689101,0.28762493,695.35,693.69,4.06981333]
[1736699689299,0.28762493,695.35,693.7,2.7747619]
[1736699689701,0.28762493,695.35,693.71,3.00705271]
[1736699690000,1.0784721,695.28,694.06,1.29505143]
[1736699691001,1.0784721,695.29,694.06,1.29505143]
[1736699692801,1.0784721,695.29,694.07,1.29505143]
[1736699693899,1.0784721,695.33,694.11,1.29505143]
[1736699695004,0.28762493,695.35,694.09,1.29505143]
[1736699695907,0.28762493,695.35,694.08,1.29505143]
[1736699696506,0.28762493,695.35,694.09,0.28814707]
[1736699701904,0.27827794,695.35,694.09,0.28814707]
[1736699717119,0.27827794,695.35,694.09,3.28236936]
[1736699717322,0.27827794,695.35,694.1,2.76541204]
[1736699718325,0.27827794,695.35,694.11,2.99422229]
[1736699718526,0.27827794,695.35,694.12,2.76541204]
[1736699719925,0.27827794,695.35,694.13,2.99422229]
[1736699720126,0.27827794,695.35,694.14,1.73488665]
[1736699720425,0.27827794,695.35,694.14,2.76618876]
[1736699720622,0.27827794,695.35,694.14,1.73488665]
[1736699720823,0.27827794,695.35,694.14,2.7661819]
[1736699721223,0.27827794,695.35,694.15,2.99422229]
[1736699721419,0.27827794,695.35,694.16,1.73488665]
[1736699723323,0.27827794,695.35,694.09,0.28814707]
[1736699727831,0.27827794,695.35,694.09,0.27431501]
[1736699729924,0.27827794,695.35,694.09,3.04053561]
[1736699731036,0.27827794,695.35,694.1,2.99422229]
[1736699731237,0.27827794,695.35,694.11,3.05435936]
[1736699731533,0.27827794,695.35,694.12,0.28813461]
[1736699732236,0.27827794,695.35,694.12,3.05435521]
[1736699732734,0.27827794,695.35,694.13,2.99422229]
[1736699732936,0.27827794,695.35,694.14,2.7662206]
[1736699733436,0.27827794,695.35,694.15,0.28812216]
[1736699734336,0.27827794,695.35,694.15,3.28234445]
[1736699734536,0.27827794,695.35,694.23,1.29505143]
[1736699734933,0.27827794,695.35,694.24,0.28808481]
[1736699736532,0.27827794,695.35,694.25,1.29505143]
[1736699736834,0.27827794,695.35,694.25,4.06127203]
[1736699737036,0.27827794,695.35,694.26,1.03133395]
[1736699737538,0.27827794,695.35,694.26,4.02555624]
[1736699737737,0.27827794,695.35,694.27,2.7662206]
[1736699739335,0.27827794,695.35,694.28,2.99422229]
[1736699739539,0.27827794,695.35,694.29,2.7662206]
[1736699740543,0.27827794,695.35,694.3,2.99422229]
[1736699740735,0.27827794,695.35,694.31,2.7662206]
[1736699742343,0.27827794,695.35,694.32,2.99422229]
[1736699742642,0.27827794,695.35,694.33,1.73488665]
[1736699743145,0.27827794,695.35,694.33,2.76638737]
[1736699743843,0.27827794,695.35,694.33,1.73488665]
[1736699744238,0.27827794,695.35,694.24,0.28808481]
[1736699747746,0.27827794,695.35,694.24,3.2823071]
[1736699748048,0.27827794,695.35,694.25,2.76641226]
[1736699749249,0.27827794,695.35,694.26,2.99422229]
[1736699749449,0.27827794,695.35,694.27,2.76641226]
[1736699750452,0.27827794,695.35,694.3,1.29505143]
[1736699750949,0.27827794,695.35,694.3,2.32657704]
[1736699751551,0.27827794,695.35,694.31,1.29505143]
[1736699752647,0.27827794,695.35,694.3,2.99422229]
[1736699753246,0.27827794,695.35,694.28,1.29505143]
[1736699753751,0.27827794,695.35,694.24,0.28808481]
[1736699772870,2.58072224,695.87,694.24,0.28808481]
[1736699773063,0.28741413,695.86,694.24,0.28808481]
[1736699775670,0.26431695,695.85,694.24,0.28808481]
[1736699775968,0.28742239,695.84,694.24,0.28808481]
[1736699776172,0.26431695,695.83,694.24,0.28808481]
[1736699776373,0.28743065,695.82,694.24,0.28808481]
[1736699776676,0.26431695,695.81,694.24,0.28808481]
[1736699776869,0.28743891,695.8,694.24,0.28808481]
[1736699777069,0.26431695,695.79,694.24,0.28808481]
[1736699777673,0.28743891,695.8,694.24,0.28808481]
[1736699786183,0.28743891,695.8,694.24,3.06122676]
[1736699786581,0.28743891,695.8,694.25,2.99161804]
[1736699786781,0.28743891,695.8,694.26,2.77314195]
[1736699786982,0.28743891,695.8,694.27,0.28807236]
[1736699787480,0.26431751,695.79,694.27,0.28807236]
[1736699788081,0.28744718,695.78,694.27,3.2796904]
[1736699788277,0.28744718,695.78,694.28,2.77314195]
[1736699788484,0.28744718,695.78,694.29,0.28806406]
[1736699788777,0.26431592,695.77,694.29,0.28806406]
[1736699788983,0.28745544,695.76,694.29,0.28806406]
[1736699789283,0.26431365,695.75,694.29,0.28806406]
[1736699789682,0.26431365,695.75,694.29,3.2796821]
[1736699789882,0.26431365,695.75,694.3,2.77314195]
[1736699790178,0.28745544,695.76,694.31,0.28805576]
[1736699791082,0.28745544,695.76,694.31,3.2796738]
[1736699792785,0.28745544,695.76,694.31,0.28805576]
[1736699804691,0.28745544,695.76,694.36,1.29505143]
[1736699804891,0.28745544,695.76,694.37,0.28803087]
[1736699805592,0.28745544,695.76,694.38,1.29505143]
[1736699805890,0.28745544,695.76,694.39,0.28802258]
[1736699806285,0.28745544,695.76,694.39,1.58307401]
[1736699807592,0.28745544,695.76,694.39,4.3532697]
[1736699807887,0.28745544,695.76,694.4,2.77019569]
[1736699808092,0.28745544,695.76,694.41,0.28801428]
[1736699808291,0.28745544,695.76,694.41,6.04982801]
[1736699808486,0.28745544,695.76,694.42,2.77019569]
[1736699808689,0.28745544,695.76,694.43,0.28800599]
[1736699809091,0.28745544,695.76,694.48,1.29505143]
[1736699809389,0.28745544,695.76,694.49,0.2879811]
[1736699810393,0.28745544,695.76,694.49,1.58303253]
[1736699810591,0.28745544,695.76,694.49,4.35322822]
[1736699810792,0.28745544,695.76,694.5,2.77019569]
[1736699810986,0.28745544,695.76,694.51,0.28797281]
[1736699824497,0.28745544,695.76,694.52,1.29505143]
[1736699825393,0.28745544,695.76,694.56,1.29505143]
[1736699826500,0.28745544,695.76,694.57,1.29505143]
[1736699827295,0.28745544,695.76,694.59,1.29505143]
[1736699828600,0.28745544,695.76,694.61,1.29505143]
[1736699829394,0.28745544,695.76,694.65,1.29505143]
[1736699830298,0.28745544,695.76,694.64,1.29505143]
[1736699831101,0.28745544,695.76,694.63,1.29505143]
[1736699831795,1.36592754,695.76,694.62,1.73142438]
[1736699832901,1.0784721,695.75,694.62,1.73142438]
[1736699834601,1.0784721,695.75,694.61,2.99161804]
[1736699835503,1.0784721,695.75,694.59,1.29505143]
[1736699835898,0.28745544,695.76,694.51,0.28797281]
[1736699842004,1.36592754,695.76,694.51,0.28797281]
[1736699843106,0.28745544,695.76,694.51,0.28797281]
[1736699858615,0.26431354,695.75,694.51,0.28797281]
[1736699859115,0.28745544,695.76,694.51,0.28797281]
[1736699862919,0.26431029,695.75,694.51,0.28797281]
[1736699863119,1.0784721,695.75,694.51,0.28797281]
[1736699864818,1.0784721,695.73,694.51,0.28797281]
[1736699865819,1.0784721,695.72,694.51,0.28797281]
[1736699866520,1.0784721,695.73,694.51,0.28797281]
[1736699867320,1.0784721,695.72,694.51,0.28797281]
[1736699867917,1.0784721,695.71,694.51,0.28797281]
[1736699870315,1.0784721,695.7,694.51,0.28797281]
[1736699871220,1.0784721,695.69,694.51,0.28797281]
[1736699871920,1.0784721,695.68,694.51,0.28797281]
[1736699873116,1.0784721,695.67,694.51,0.28797281]
[1736699875820,1.0784721,695.73,694.51,0.28797281]
[1736699876619,1.0784721,695.74,694.51,0.28797281]
[1736699879027,1.0784721,695.73,694.51,0.28797281]
[1736699879827,1.0784721,695.72,694.51,0.28797281]
[1736699881629,1.36592754,695.76,694.51,0.28797281]
[1736699882626,0.28745544,695.76,694.51,0.28797281]
[1736699885031,1.0784721,695.74,694.51,0.28797281]
[1736699885425,1.0784721,695.75,694.51,2.02712767]
[1736699886233,1.0784721,695.75,694.51,0.28797281]
[1736699886531,1.0784721,695.74,694.51,0.28797281]
[1736699888433,1.0784721,695.75,694.51,0.28797281]
[1736699890335,0.28745544,695.76,694.51,0.28797281]
[1736699892029,1.0784721,695.75,694.51,0.28797281]
[1736699892835,1.0784721,695.74,694.51,0.28797281]
[1736699893736,1.0784721,695.73,694.51,0.28797281]
[1736699894537,1.0784721,695.71,694.51,0.28797281]
[1736699895338,1.0784721,695.73,694.51,2.02712767]
[1736699895740,1.0784721,695.73,694.51,0.28797281]
[1736699896240,0.28745544,695.76,694.51,0.28797281]
[1736699931673,0.26433119,695.75,694.51,0.28797281]
[1736699931875,0.2874637,695.74,694.51,0.28797281]
[1736699932474,0.2643286,695.73,694.51,0.28797281]
[1736699932672,0.28747197,695.72,694.51,0.28797281]
[1736699933073,0.26433022,695.71,694.51,0.28797281]
[1736699933273,0.28748023,695.7,694.51,0.28797281]
[1736699936075,0.26435814,695.69,694.51,0.28797281]
[1736699936271,0.2874885,695.68,694.51,0.28797281]
[1736699941678,0.26435747,695.67,694.51,0.28797281]
[1736699941975,0.28749676,695.66,694.51,0.28797281]
[1736699942780,0.2643572,695.65,694.51,0.28797281]
[1736699943377,0.26435721,695.64,694.51,0.28797281]
[1736699943578,0.28749676,695.66,694.51,0.28797281]
[1736699943778,0.26435356,695.65,694.51,0.28797281]
[1736699944081,0.28750503,695.64,694.51,0.28797281]
[1736699944382,0.26435356,695.63,694.51,0.28797281]
[1736699944781,0.28751329,695.62,694.51,0.28797281]
[1736699952785,0.26435964,695.61,694.51,0.28797281]
[1736699953080,0.28751743,695.61,694.51,0.28797281]
[1736699962392,1.36598953,695.61,694.51,0.28797281]
[1736699963386,1.0784721,695.59,694.51,0.28797281]
[1736699964392,1.0784721,695.58,694.51,0.28797281]
[1736699965192,1.0784721,695.56,694.51,0.28797281]
[1736699966198,1.0784721,695.54,694.51,0.28797281]
[1736699966693,0.28751743,695.61,694.51,0.28797281]
[1736699966694,1.0784721,695.52,694.51,0.28797281]
[1736699968794,1.0784721,695.51,694.51,0.28797281]
[1736699970088,1.0784721,695.52,694.51,0.28797281]
[1736699970793,1.0784721,695.59,694.51,0.28797281]
[1736699971994,1.36598953,695.61,694.51,0.28797281]
[1736699973093,0.28751743,695.61,694.51,0.28797281]
[1736699978495,1.36598953,695.61,694.51,0.28797281]
[1736699979793,1.0784721,695.58,694.51,0.28797281]
[1736699980795,1.0784721,695.57,694.51,0.28797281]
[1736699981796,1.0784721,695.55,694.51,0.28797281]
[1736699982796,1.0784721,695.54,694.51,0.28797281]
[1736699984497,1.0784721,695.55,694.51,0.28797281]
[1736699985297,1.0784721,695.56,694.51,0.28797281]
[1736699986194,1.0784721,695.55,694.51,0.28797281]
[1736699987199,1.0784721,695.55,694.4,2.99355569]
[1736699987399,1.0784721,695.56,694.27,1.29505143]
[1736699988200,0.26441057,695.55,694.27,1.29505143]
[1736699988401,0.26441057,695.55,694.2,1.74289836]
[1736699988402,1.0784721,695.5,694.2,1.74289836]
[1736699989295,1.0784721,695.5,694.2,2.78166373]
[1736699989800,0.28754223,695.55,694.2,2.78166373]
[1736699989801,1.0784721,695.54,694.21,2.99982531]
[1736699989998,0.55196194,695.53,694.22,1.74289836]
[1736699990197,0.26441144,695.52,694.22,1.74289836]
[1736699990393,0.28755876,695.51,694.22,2.78131773]
[1736699991100,0.28755876,695.51,694.22,1.74289836]
[1736699991302,0.28755876,695.51,694.22,2.78132926]
[1736699991600,0.28755876,695.51,694.23,2.99982531]
[1736699991793,0.28755876,695.51,694.24,2.7812124]
[1736699993200,0.28755876,695.51,694.25,2.99982531]
[1736699993495,0.28755876,695.51,694.26,2.7812124]
[1736699993699,0.28755876,695.51,694.26,1.74289836]
[1736699995702,0.28755876,695.51,694.02,2.78084501]
[1736699996001,0.28755876,695.51,694.03,0.28817198]
[1736699997196,0.28755876,695.51,694.03,3.28799729]
[1736699997501,0.28755876,695.51,694.04,2.78084501]
[1736699997701,0.28755876,695.51,694.05,0.28816367]
[1736699998802,0.28755876,695.51,694.05,3.28798898]
[1736699999001,0.28755876,695.51,694.06,2.78084501]
[1736699999203,0.28755876,695.51,694.07,0.28815537]
[1736700000003,0.28755876,695.51,694.07,3.28798068]
[1736700000204,0.28755876,695.51,694.08,2.78084501]
[1736700000497,0.28755876,695.51,694.09,0.28814707]
[1736700002000,0.28755876,695.51,694.09,3.28797238]
[1736700002196,0.28755876,695.51,694.1,2.78084501]
[1736700002403,0.28755876,695.51,694.11,0.28813876]
[1736700003707,0.28755876,695.51,694.11,3.28796407]
[1736700003902,0.28755876,695.51,694.12,2.78084501]
[1736700004712,0.28755876,695.51,694.12,1.03794665]
[1736700004902,0.28755876,695.51,694.11,3.28796407]
[1736700005501,0.28755876,695.51,694.11,0.28813876]
[1736700015912,1.0784721,695.47,694.11,0.28813876]
[1736700016113,0.28757944,695.46,694.11,0.28813876]
[1736700017820,1.36605154,695.46,694.11,0.28813876]
[1736700019024,1.0784721,695.39,694.11,0.28813876]
[1736700019726,0.28760839,695.39,694.11,0.28813876]
[1736700049647,0.28760839,695.39,694.11,3.06425692]
[1736700049846,0.28760839,695.39,694.11,6.06408223]
[1736700050044,0.28760839,695.39,694.12,2.77611816]
[1736700051147,0.28760839,695.39,694.13,2.99982531]
[1736700051353,0.28760839,695.39,694.14,2.77611816]
[1736700053145,0.28760839,695.39,694.15,2.99982531]
[1736700053350,0.28760839,695.39,694.16,2.77611816]
[1736700054846,0.28760839,695.39,694.17,2.99982531]
[1736700055050,0.28760839,695.39,694.18,2.77611816]
[1736700056745,0.28760839,695.39,694.19,2.99982531]
[1736700056951,0.28760839,695.39,694.2,2.77611816]
[1736700058446,0.28760839,695.39,694.21,2.99982531]
[1736700058651,0.28760839,695.39,694.22,2.77611816]
[1736700059649,0.28760839,695.39,694.23,2.99982531]
[1736700059850,0.28760839,695.39,694.24,2.77611816]
[1736700060849,0.28760839,695.39,694.25,2.99982531]
[1736700061049,0.28760839,695.39,694.26,1.73964287]
[1736700062559,0.28760839,695.39,694.15,2.77812915]
[1736700063654,0.28760839,695.39,694.16,2.99982531]
[1736700063851,0.28760839,695.39,694.17,2.77812915]
[1736700065453,0.28760839,695.39,694.18,2.99982531]
[1736700065658,0.28760839,695.39,694.19,2.77812915]
[1736700067162,0.28760839,695.39,694.2,2.99982531]
[1736700067354,0.28760839,695.39,694.21,2.77812915]
[1736700068857,0.28760839,695.39,694.22,2.99982531]
[1736700069057,0.28760839,695.39,694.23,2.77812915]
[1736700071061,0.28760839,695.39,694.24,2.99982531]
[1736700071260,0.28760839,695.39,694.25,2.77812915]
[1736700072063,0.28760839,695.39,694.25,1.73964287]
[1736700072257,0.28760839,695.39,694.26,2.99982531]
[1736700072457,0.28760839,695.39,694.27,1.73964287]
[1736700073465,1.0784721,695.38,694.27,1.73964287]
[1736700074058,1.0784721,695.38,694.19,2.77869588]
[1736700074265,1.0784721,695.37,694.19,2.77869588]
[1736700075265,1.0784721,695.36,694.2,2.99982531]
[1736700075458,1.0784721,695.36,694.21,2.77869588]
[1736700076462,1.0784721,695.36,694.22,2.99982531]
[1736700076667,1.0784721,695.36,694.23,2.77869588]
[1736700078164,1.0784721,695.36,694.24,2.99982531]
[1736700078363,1.0784721,695.36,694.25,1.73964287]
[1736700078568,1.0784721,695.38,694.25,1.73964287]
[1736700078763,1.0784721,695.38,694.25,2.77875034]
[1736700079470,0.28760839,695.39,694.25,2.77875034]
[1736700079673,0.28760839,695.39,694.26,2.99982531]
[1736700079871,0.28760839,695.39,694.27,2.77875034]
[1736700080574,0.28760839,695.39,694.28,1.29505143]
[1736700080771,0.28760839,695.39,694.28,5.33398421]
[1736700080971,0.28760839,695.39,694.29,2.77875034]
[1736700081474,0.28760839,695.39,694.29,4.07380177]
[1736700081672,0.28760839,695.39,694.3,1.03910747]
[1736700082675,0.28760839,695.39,694.3,4.03893278]
[1736700082876,0.28760839,695.39,694.31,2.77875034]
[1736700084177,0.28760839,695.39,694.32,2.99982531]
[1736700084378,0.28760839,695.39,694.33,1.73964287]
[1736700084973,0.28760839,695.39,694.33,2.77910261]
[1736700085177,0.28760839,695.39,694.33,1.73964287]
[1736700085379,0.28760839,695.39,694.33,2.77917437]
[1736700086073,0.28760839,695.39,694.34,2.99982531]
[1736700086277,0.28760839,695.39,694.35,1.73964287]
[1736700086978,1.0784721,695.35,694.35,1.73964287]
[1736700087375,1.0784721,695.35,694.34,2.99982531]
[1736700087572,1.0784721,695.35,694.23,2.99982531]
[1736700087773,1.0784721,695.35,694.24,2.78388279]
[1736700088978,1.0784721,695.34,694.25,2.99982531]
[1736700089175,1.0784721,695.34,694.26,1.74417155]
[1736700090080,1.0784721,695.34,694.26,2.78716064]
[1736700090281,1.0784721,695.34,694.27,1.74417155]
[1736700090480,1.0784721,695.34,694.23,2.78725207]
[1736700090679,1.0784721,695.36,694.23,2.78725207]
[1736700091282,1.0784721,695.36,694.24,2.99982531]
[1736700091480,1.0784721,695.37,694.25,2.78725207]
[1736700093183,1.0784721,695.37,694.26,2.99982531]
[1736700093381,1.0784721,695.37,694.27,2.78725207]
[1736700094083,1.0784721,695.37,694.27,1.74417155]
[1736700094486,0.28760839,695.39,694.27,1.74417155]
[1736700095585,0.28760839,695.39,694.25,2.78760481]
[1736700096690,0.28760839,695.39,694.26,2.99982531]
[1736700096986,0.28760839,695.39,694.27,2.78766595]
[1736700097883,0.28760839,695.39,694.27,1.74417155]
[1736700098181,0.28760839,695.39,694.27,2.78784759]
[1736700098584,0.28760839,695.39,694.28,2.99982531]
[1736700098885,0.28760839,695.39,694.29,2.78784759]
[1736700099085,1.0784721,695.36,694.29,2.78784759]
[1736700099881,1.0784721,695.36,694.3,2.99982531]
[1736700100083,1.0784721,695.37,694.31,2.78784759]
[1736700100990,1.0784721,695.38,694.31,2.78784759]
[1736700102091,1.0784721,695.38,694.32,2.99982531]